[Event "6e festival d'échecs d'Allauch"]
[Site "Allauch, France"]
[Date "2024.08.26"]
[Round "1.1"]
[White "Hoang Villemagne, Mathieu"]
[Black "Degraeve, Jean-Marc"]
[Result "0-1"]
[TimeControl "1 h 30 min (+30s/coup)"]
[WhiteElo "1832"]
[BlackElo "2487"]

1. e4 {[%clk 01:30:59]} c5 {[%clk 01:30:51]} {[%emt 00:00:10]} 2. Nf3 {[%clk
01:31:23]} {[%emt 00:00:07]} Nc6 {[%clk 01:31:14]} {[%emt 00:00:07]} 3. c3
{[%clk 01:28:53]} {[%emt 00:02:58]} Nf6 {[%clk 01:31:28]} {[%emt 00:00:16]} 4.
e5 {[%clk 01:28:43]} {[%emt 00:00:41]} Nd5 {[%clk 01:31:48]} {[%emt 00:00:09]}
5. d4 {[%clk 01:27:34]} {[%emt 00:01:39]} cxd4 {[%clk 01:32:10]} {[%emt
00:00:09]} 6. cxd4 {[%clk 01:27:59]} {[%emt 00:00:05]} d6 {[%clk 01:32:24]}
{[%emt 00:00:16]} 7. exd6 {[%clk 01:25:24]} {[%emt 00:03:05]} e6 {[%clk
01:32:02]} {[%emt 00:00:52]} 8. Nc3 {[%clk 01:20:33]} {[%emt 00:05:21]} Nxc3
{[%clk 01:31:20]} {[%emt 00:01:12]} 9. bxc3 {[%clk 01:21:02]} {[%emt 00:00:02]}
Bxd6 {[%clk 01:31:40]} {[%emt 00:00:09]} 10. Bd3 {[%clk 01:20:51]} {[%emt
00:00:41]} Qc7 {[%clk 01:28:57]} {[%emt 00:03:13]} 11. O-O {[%clk 01:20:20]}
{[%emt 00:01:02]} Bf4 {[%clk 01:27:33]} {[%emt 00:01:54]} 12. Re1 {[%clk
01:12:27]} {[%emt 00:08:23]} O-O {[%clk 01:26:56]} {[%emt 00:01:06]} 13. Qe2
{[%clk 01:09:05]} {[%emt 00:03:53]} Bxc1 {[%clk 01:27:10]} {[%emt 00:00:17]} 14.
Raxc1 {[%clk 01:09:33]} {[%emt 00:00:02]} Qf4 {[%clk 01:26:29]} {[%emt
00:01:10]} 15. Bb1 {[%clk 01:06:31]} {[%emt 00:03:33]} b6 {[%clk 01:19:07]}
{[%emt 00:07:52]} 16. Qc2 {[%clk 00:59:13]} {[%emt 00:07:48]} g6 {[%clk
01:19:28]} {[%emt 00:00:09]} 17. Qe4 {[%clk 00:49:02]} {[%emt 00:10:42]} Qxe4
{[%clk 01:17:55]} {[%emt 00:02:03]} 18. Bxe4 {[%clk 00:49:30]} {[%emt
00:00:02]} Bb7 {[%clk 01:17:41]} {[%emt 00:00:43]} 19. c4 {[%clk 00:43:17]}
{[%emt 00:06:44]} Rac8 {[%clk 01:14:40]} {[%emt 00:03:30]} 20. d5 {[%clk
00:30:17]} {[%emt 00:13:30]} exd5 {[%clk 01:14:05]} {[%emt 00:01:05]} 21. Bxd5
{[%clk 00:30:39]} {[%emt 00:00:09]} Rfd8 {[%clk 01:12:36]} {[%emt 00:01:58]} 22.
Re3 {[%clk 00:26:50]} {[%emt 00:04:19]} Rc7 {[%clk 01:11:45]} {[%emt 00:01:22]}
23. Rce1 {[%clk 00:23:37]} {[%emt 00:03:43]} Na5 {[%clk 01:10:48]} {[%emt
00:01:27]} 24. Rd3 {[%clk 00:19:26]} {[%emt 00:04:41]} Kg7 {[%clk 01:09:40]}
{[%emt 00:01:37]} 25. Red1 {[%clk 00:19:18]} {[%emt 00:00:39]} b5 {[%clk
01:04:46]} {[%emt 00:05:24]} 26. Nd2 {[%clk 00:17:02]} {[%emt 00:02:45]} Rcd7
{[%clk 00:50:01]} {[%emt 00:15:15]} 27. Nb3 {[%clk 00:15:17]} {[%emt 00:02:15]}
bxc4 {[%clk 00:49:42]} {[%emt 00:00:48]} 28. Bxc4 {[%clk 00:13:00]} {[%emt
00:02:47]} Rxd3 {[%clk 00:50:03]} {[%emt 00:00:09]} 29. Bxd3 {[%clk 00:13:26]}
{[%emt 00:00:05]} Nxb3 {[%clk 00:50:26]} {[%emt 00:00:07]} 30. axb3 {[%clk
00:13:45]} {[%emt 00:00:10]} Ba6 {[%clk 00:50:34]} {[%emt 00:00:22]} 31. Be2
{[%clk 00:13:45]} {[%emt 00:00:31]} Rxd1+ {[%clk 00:50:57]} {[%emt 00:00:07]}
32. Bxd1 {[%clk 00:14:08]} {[%emt 00:00:06]} Kf6 {[%clk 00:51:25]} {[%emt
00:00:02]} 33. f3 {[%clk 00:12:01]} {[%emt 00:02:38]} Ke5 {[%clk 00:51:41]}
{[%emt 00:00:14]} 34. Kf2 {[%clk 00:12:29]} {[%emt 00:00:01]} Kd4 {[%clk
00:52:05]} {[%emt 00:00:06]} 35. g4 {[%clk 00:11:21]} {[%emt 00:01:39]} Kc3
{[%clk 00:52:02]} {[%emt 00:00:33]} 36. g5 {[%clk 00:08:30]} {[%emt 00:03:21]}
Kd2 {[%clk 00:52:25]} {[%emt 00:00:08]} 0-1

[Event "6e festival d'échecs d'Allauch"]
[Site "Allauch, France"]
[Date "2024.08.26"]
[Round "1.2"]
[White "Degraeve, Remy"]
[Black "Boudjellal, Yaqin"]
[Result "1-0"]
[TimeControl "1 h 30 min (+30s/coup)"]
[WhiteElo "2402"]
[BlackElo "1829"]

1. e4 {[%clk 01:30:53]} {[%emt 00:00:07]} e5 {[%clk 01:30:54]} {[%emt
00:00:07]} 2. Nf3 {[%clk 01:31:17]} {[%emt 00:00:05]} Nc6 {[%clk 01:31:17]}
{[%emt 00:00:07]} 3. Bc4 {[%clk 01:31:42]} {[%emt 00:00:05]} Nf6 {[%clk
01:31:38]} {[%emt 00:00:09]} 4. d3 {[%clk 01:32:07]} {[%emt 00:00:05]} Be7
{[%clk 01:32:00]} {[%emt 00:00:08]} 5. O-O {[%clk 01:32:28]} {[%emt 00:00:09]}
d6 {[%clk 01:32:26]} {[%emt 00:00:04]} 6. a4 {[%clk 01:32:35]} {[%emt
00:00:24]} Bg4 {[%clk 01:31:54]} {[%emt 00:01:02]} 7. Nbd2 {[%clk 01:30:54]}
{[%emt 00:02:11]} h6 {[%clk 01:31:05]} {[%emt 00:01:19]} 8. c3 {[%clk
01:27:10]} {[%emt 00:04:14]} O-O {[%clk 01:30:22]} {[%emt 00:01:12]} 9. h3
{[%clk 01:27:29]} {[%emt 00:00:11]} Bh5 {[%clk 01:30:36]} {[%emt 00:00:16]} 10.
Re1 {[%clk 01:27:52]} {[%emt 00:00:07]} Nh7 {[%clk 01:26:12]} {[%emt 00:04:53]}
11. a5 {[%clk 01:23:08]} {[%emt 00:05:14]} Qd7 {[%clk 01:21:30]} {[%emt
00:05:09]} 12. Nxe5 {[%clk 01:17:59]} {[%emt 00:05:41]} Nxe5 {[%clk 01:17:34]}
{[%emt 00:04:26]} 13. Qxh5 {[%clk 01:18:20]} {[%emt 00:00:09]} Nxc4 {[%clk
01:17:15]} {[%emt 00:00:49]} 14. Nxc4 {[%clk 01:18:42]} {[%emt 00:00:07]} f5
{[%clk 01:17:38]} {[%emt 00:00:07]} 15. Ne3 {[%clk 01:15:21]} {[%emt 00:03:52]}
fxe4 {[%clk 01:14:14]} {[%emt 00:03:54]} 16. dxe4 {[%clk 01:15:46]} {[%emt
00:00:05]} Rae8 {[%clk 01:11:50]} {[%emt 00:02:53]} 17. Nf5 {[%clk 01:14:04]}
{[%emt 00:02:14]} Bg5 {[%clk 01:11:44]} {[%emt 00:00:35]} 18. Bxg5 {[%clk
01:13:37]} {[%emt 00:00:57]} Nxg5 {[%clk 01:11:27]} {[%emt 00:00:49]} 19. Qg4
{[%clk 01:06:21]} {[%emt 00:07:45]} Qe6 {[%clk 01:09:02]} {[%emt 00:02:54]} 20.
h4 {[%clk 01:05:28]} {[%emt 00:01:24]} Rxf5 {[%clk 01:08:02]} {[%emt 00:01:30]}
21. Qxf5 {[%clk 01:05:26]} {[%emt 00:00:33]} Nxe4 {[%clk 01:08:07]} {[%emt
00:00:23]} 22. Qxe6+ {[%clk 01:05:52]} {[%emt 00:00:04]} Rxe6 {[%clk 01:08:36]}
{[%emt 00:00:02]} 23. f3 {[%clk 01:06:04]} {[%emt 00:00:19]} Nc5 {[%clk
01:08:55]} {[%emt 00:00:10]} 24. b4 {[%clk 01:06:30]} {[%emt 00:00:05]} Rxe1+
{[%clk 01:08:49]} {[%emt 00:00:37]} 25. Rxe1 {[%clk 01:06:56]} {[%emt
00:00:03]} Na4 {[%clk 01:09:13]} {[%emt 00:00:06]} 26. Re7 {[%clk 01:07:13]}
{[%emt 00:00:13]} Nxc3 {[%clk 01:09:22]} {[%emt 00:00:22]} 27. Rxc7 {[%clk
01:07:36]} {[%emt 00:00:07]} Nb5 {[%clk 01:08:02]} {[%emt 00:01:48]} 28. Rxb7
{[%clk 01:08:03]} {[%emt 00:00:04]} a6 {[%clk 01:08:18]} {[%emt 00:00:14]} 29.
Rxb5 {[%clk 01:08:28]} {[%emt 00:00:05]} 1-0

[Event "6e festival d'échecs d'Allauch"]
[Site "Allauch, France"]
[Date "2024.08.26"]
[Round "1.3"]
[White "Gonzalez De Linares, Milan"]
[Black "Philippe, Guillaume"]
[Result "0-1"]
[TimeControl "1 h 30 min (+30s/coup)"]
[WhiteElo "1821"]
[BlackElo "2356"]

1. d4 {[%clk 01:30:58]} {[%emt 00:00:03]} Nf6 {[%clk 01:30:47]} {[%emt
00:00:14]} 2. c4 {[%clk 01:31:24]} {[%emt 00:00:03]} e6 {[%clk 01:31:09]}
{[%emt 00:00:07]} 3. Nf3 {[%clk 01:31:49]} {[%emt 00:00:05]} Bb4+ {[%clk
01:31:27]} {[%emt 00:00:13]} 4. Bd2 {[%clk 01:32:13]} {[%emt 00:00:05]} Be7
{[%clk 01:31:16]} {[%emt 00:00:41]} 5. g3 {[%clk 01:32:34]} {[%emt 00:00:10]}
O-O {[%clk 01:31:11]} {[%emt 00:00:35]} 6. Bg2 {[%clk 01:33:00]} {[%emt
00:00:03]} d5 {[%clk 01:31:09]} {[%emt 00:00:32]} 7. O-O {[%clk 01:33:21]}
{[%emt 00:00:10]} c6 {[%clk 01:29:53]} {[%emt 00:01:45]} 8. Nc3 {[%clk
01:33:47]} {[%emt 00:00:05]} Nbd7 {[%clk 01:29:34]} {[%emt 00:00:49]} 9. Bf4
{[%clk 01:33:13]} {[%emt 00:01:03]} dxc4 {[%clk 01:27:31]} {[%emt 00:02:34]} 10.
a4 {[%clk 01:31:26]} {[%emt 00:02:17]} Nd5 {[%clk 01:25:02]} {[%emt 00:02:58]}
11. Nd2 {[%clk 01:26:30]} {[%emt 00:05:27]} Nxf4 {[%clk 01:25:01]} {[%emt
00:00:32]} 12. gxf4 {[%clk 01:26:51]} {[%emt 00:00:08]} Nb6 {[%clk 01:24:56]}
{[%emt 00:00:34]} 13. a5 {[%clk 01:24:38]} {[%emt 00:02:44]} Nd5 {[%clk
01:25:08]} {[%emt 00:00:17]} 14. e3 {[%clk 01:24:23]} {[%emt 00:00:44]} Bb4
{[%clk 01:24:29]} {[%emt 00:01:09]} 15. Qc2 {[%clk 01:18:05]} {[%emt 00:06:48]}
Bxa5 {[%clk 01:24:34]} {[%emt 00:00:25]} 16. Nxc4 {[%clk 01:18:25]} {[%emt
00:00:11]} Bc7 {[%clk 01:24:59]} {[%emt 00:00:05]} 17. Rfb1 {[%clk 01:10:45]}
{[%emt 00:08:07]} a6 {[%clk 01:17:52]} {[%emt 00:07:37]} 18. b4 {[%clk
00:57:07]} {[%emt 00:14:10]} Rb8 {[%clk 01:17:49]} {[%emt 00:00:31]} 19. Ne4
{[%clk 00:56:15]} {[%emt 00:01:25]} Qe7 {[%clk 01:17:30]} {[%emt 00:00:48]} 20.
Nc5 {[%clk 00:54:00]} {[%emt 00:02:46]} Kh8 {[%clk 01:15:07]} {[%emt 00:02:52]}
21. Kh1 {[%clk 00:40:30]} {[%emt 00:14:00]} Qh4 {[%clk 01:11:54]} {[%emt
00:03:44]} 22. Ne5 {[%clk 00:39:30]} {[%emt 00:01:31]} Nf6 {[%clk 01:09:24]}
{[%emt 00:02:58]} 23. Ncd3 {[%clk 00:34:35]} {[%emt 00:05:26]} Bd6 {[%clk
01:04:54]} {[%emt 00:04:56]} 24. Rg1 {[%clk 00:29:35]} {[%emt 00:05:34]} Nd5
{[%clk 01:03:08]} {[%emt 00:02:16]} 25. Bf3 {[%clk 00:24:49]} {[%emt 00:05:15]}
f6 {[%clk 01:01:32]} {[%emt 00:02:06]} 26. Bxd5 {[%clk 00:21:06]} {[%emt
00:04:13]} exd5 {[%clk 01:00:00]} {[%emt 00:02:01]} 27. Nf3 {[%clk 00:21:19]}
{[%emt 00:00:18]} Qh5 {[%clk 00:59:57]} {[%emt 00:00:32]} 28. Rg3 {[%clk
00:21:13]} {[%emt 00:00:37]} Bf5 {[%clk 01:00:06]} {[%emt 00:00:20]} 29. Rag1
{[%clk 00:19:10]} {[%emt 00:02:34]} Be4 {[%clk 01:00:13]} {[%emt 00:00:23]} 30.
Qd1 {[%clk 00:18:44]} {[%emt 00:00:56]} g5 {[%clk 00:59:13]} {[%emt 00:01:29]}
31. R1g2 {[%clk 00:15:32]} {[%emt 00:03:43]} Rg8 {[%clk 00:57:01]} {[%emt
00:02:38]} 32. Kg1 {[%clk 00:13:50]} {[%emt 00:02:15]} g4 {[%clk 00:55:50]}
{[%emt 00:01:41]} 33. Nfe1 {[%clk 00:14:12]} {[%emt 00:00:09]} Bxg2 {[%clk
00:56:09]} {[%emt 00:00:10]} 34. Kxg2 {[%clk 00:14:30]} {[%emt 00:00:12]} Rg6
{[%clk 00:55:35]} {[%emt 00:01:04]} 35. Nc2 {[%clk 00:13:46]} {[%emt 00:01:15]}
Rbg8 {[%clk 00:55:19]} {[%emt 00:00:45]} 36. Qg1 {[%clk 00:11:47]} {[%emt
00:02:29]} Qf5 {[%clk 00:55:08]} {[%emt 00:00:42]} 37. Qd1 {[%clk 00:11:54]}
{[%emt 00:00:22]} h5 {[%clk 00:54:04]} {[%emt 00:01:33]} 38. Kf1 {[%clk
00:11:10]} {[%emt 00:01:14]} h4 {[%clk 00:53:52]} {[%emt 00:00:42]} 39. Rg1
{[%clk 00:10:42]} {[%emt 00:00:58]} R8g7 {[%clk 00:53:27]} {[%emt 00:00:56]} 40.
Nce1 {[%clk 00:10:27]} {[%emt 00:00:45]} g3 {[%clk 00:53:02]} {[%emt 00:00:54]}
41. hxg3 {[%clk 00:10:15]} {[%emt 00:00:43]} hxg3 {[%clk 00:53:26]} {[%emt
00:00:06]} 42. Qf3 {[%clk 00:09:52]} {[%emt 00:00:53]} gxf2 {[%clk 00:53:27]}
{[%emt 00:00:29]} 43. Rh1+ {[%clk 00:09:39]} {[%emt 00:00:44]} Rh7 {[%clk
00:53:43]} {[%emt 00:00:13]} 44. Rxh7+ {[%clk 00:09:56]} {[%emt 00:00:13]} Kxh7
{[%clk 00:54:05]} {[%emt 00:00:08]} 45. Kxf2 {[%clk 00:10:14]} {[%emt
00:00:12]} Qg4 {[%clk 00:53:51]} {[%emt 00:00:40]} 46. Qxg4 {[%clk 00:09:58]}
{[%emt 00:00:50]} Rxg4 {[%clk 00:54:16]} {[%emt 00:00:05]} 47. Nf3 {[%clk
00:10:11]} {[%emt 00:00:18]} Rg7 {[%clk 00:54:28]} {[%emt 00:00:18]} 48. Nd2
{[%clk 00:10:18]} {[%emt 00:00:23]} Kg6 {[%clk 00:54:43]} {[%emt 00:00:15]} 49.
Nb3 {[%clk 00:10:41]} {[%emt 00:00:07]} b6 {[%clk 00:54:48]} {[%emt 00:00:25]}
50. Nd2 {[%clk 00:09:45]} {[%emt 00:01:26]} Rh7 {[%clk 00:54:50]} {[%emt
00:00:28]} 51. Kg2 {[%clk 00:10:08]} {[%emt 00:00:06]} Kf5 {[%clk 00:55:14]}
{[%emt 00:00:07]} 52. Nf1 {[%clk 00:10:18]} {[%emt 00:00:20]} a5 {[%clk
00:55:11]} {[%emt 00:00:33]} 53. bxa5 {[%clk 00:10:41]} {[%emt 00:00:07]} bxa5
{[%clk 00:55:38]} {[%emt 00:00:03]} 54. Nb2 {[%clk 00:11:02]} {[%emt 00:00:09]}
Rb7 {[%clk 00:55:51]} {[%emt 00:00:17]} 55. Na4 {[%clk 00:10:50]} {[%emt
00:00:42]} Rb4 {[%clk 00:56:04]} {[%emt 00:00:17]} 56. Nc3 {[%clk 00:11:12]}
{[%emt 00:00:08]} a4 {[%clk 00:56:20]} {[%emt 00:00:14]} 57. Kf3 {[%clk
00:11:18]} {[%emt 00:00:24]} a3 {[%clk 00:56:42]} {[%emt 00:00:08]} 0-1

[Event "6e festival d'échecs d'Allauch"]
[Site "Allauch, France"]
[Date "2024.08.26"]
[Round "1.4"]
[White "Petrosyan, Armen"]
[Black "Renahy, Corentin"]
[Result "1-0"]
[TimeControl "1 h 30 min (+30s/coup)"]
[WhiteElo "2344"]
[BlackElo "1817"]

1. e4 {[%clk 01:30:45]} {[%emt 00:00:14]} e5 {[%clk 01:30:53]} {[%emt
00:00:07]} 2. Nf3 {[%clk 01:31:09]} {[%emt 00:00:05]} Nc6 {[%clk 01:31:18]}
{[%emt 00:00:05]} 3. Bb5 {[%clk 01:31:33]} {[%emt 00:00:06]} f5 {[%clk
01:31:42]} {[%emt 00:00:06]} 4. d3 {[%clk 01:31:46]} {[%emt 00:00:17]} fxe4
{[%clk 01:32:06]} {[%emt 00:00:07]} 5. dxe4 {[%clk 01:32:11]} {[%emt 00:00:04]}
Nf6 {[%clk 01:32:27]} {[%emt 00:00:09]} 6. O-O {[%clk 01:32:33]} {[%emt
00:00:08]} Bc5 {[%clk 01:32:51]} {[%emt 00:00:05]} 7. Bxc6 {[%clk 01:31:57]}
{[%emt 00:01:08]} bxc6 {[%clk 01:33:15]} {[%emt 00:00:04]} 8. Nxe5 {[%clk
01:32:18]} {[%emt 00:00:10]} O-O {[%clk 01:33:40]} {[%emt 00:00:05]} 9. Nc3
{[%clk 01:32:26]} {[%emt 00:00:22]} d6 {[%clk 01:32:28]} {[%emt 00:01:43]} 10.
Na4 {[%clk 01:30:23]} {[%emt 00:02:33]} Nxe4 {[%clk 01:25:55]} {[%emt
00:07:03]} 11. Nxc5 {[%clk 01:18:32]} {[%emt 00:12:21]} Nxc5 {[%clk 01:26:12]}
{[%emt 00:00:12]} 12. Nxc6 {[%clk 01:18:56]} {[%emt 00:00:07]} Qf6 {[%clk
01:21:36]} {[%emt 00:05:06]} 13. Qd4 {[%clk 01:14:37]} {[%emt 00:04:48]} Bd7
{[%clk 01:14:24]} {[%emt 00:07:42]} 14. Qxf6 {[%clk 01:11:32]} {[%emt
00:03:36]} Rxf6 {[%clk 01:14:44]} {[%emt 00:00:09]} 15. Ne7+ {[%clk 01:06:27]}
{[%emt 00:05:34]} Kf8 {[%clk 01:11:32]} {[%emt 00:03:42]} 16. Nd5 {[%clk
01:06:31]} {[%emt 00:00:26]} Rg6 {[%clk 01:11:24]} {[%emt 00:00:39]} 17. Be3
{[%clk 01:01:54]} {[%emt 00:05:06]} Bc6 {[%clk 01:01:37]} {[%emt 00:10:17]} 18.
Rad1 {[%clk 00:51:20]} {[%emt 00:11:03]} Nd7 {[%clk 00:55:18]} {[%emt
00:06:50]} 19. f3 {[%clk 00:39:14]} {[%emt 00:12:37]} Re8 {[%clk 00:46:32]}
{[%emt 00:09:16]} 20. Kf2 {[%clk 00:37:08]} {[%emt 00:02:36]} Ne5 {[%clk
00:45:52]} {[%emt 00:01:10]} 21. b3 {[%clk 00:31:37]} {[%emt 00:06:01]} Bxd5
{[%clk 00:34:04]} {[%emt 00:12:18]} 22. Rxd5 {[%clk 00:31:34]} {[%emt
00:00:33]} Rf6 {[%clk 00:34:29]} {[%emt 00:00:04]} 23. h3 {[%clk 00:30:44]}
{[%emt 00:01:20]} Nc6 {[%clk 00:32:30]} {[%emt 00:02:30]} 24. Bd2 {[%clk
00:30:08]} {[%emt 00:01:07]} a6 {[%clk 00:28:20]} {[%emt 00:04:40]} 25. Re1
{[%clk 00:29:52]} {[%emt 00:00:46]} Rxe1 {[%clk 00:27:04]} {[%emt 00:01:46]} 26.
Bxe1 {[%clk 00:30:08]} {[%emt 00:00:13]} Re6 {[%clk 00:27:18]} {[%emt
00:00:16]} 27. Bc3 {[%clk 00:30:09]} {[%emt 00:00:29]} g6 {[%clk 00:26:46]}
{[%emt 00:01:02]} 28. f4 {[%clk 00:29:43]} {[%emt 00:00:57]} Ne7 {[%clk
00:25:08]} {[%emt 00:02:08]} 29. Ra5 {[%clk 00:19:29]} {[%emt 00:10:44]} d5
{[%clk 00:18:20]} {[%emt 00:07:19]} 30. Bb4 {[%clk 00:14:44]} {[%emt 00:05:14]}
Rc6 {[%clk 00:18:40]} {[%emt 00:00:09]} 31. Rxd5 {[%clk 00:15:01]} {[%emt
00:00:14]} Rxc2+ {[%clk 00:18:19]} {[%emt 00:00:51]} 32. Kf3 {[%clk 00:12:34]}
{[%emt 00:02:57]} a5 {[%clk 00:14:57]} {[%emt 00:03:52]} 33. Rxa5 {[%clk
00:12:39]} {[%emt 00:00:25]} Kf7 {[%clk 00:15:10]} {[%emt 00:00:17]} 34. Rc5
{[%clk 00:12:46]} {[%emt 00:00:23]} Rxc5 {[%clk 00:14:18]} {[%emt 00:01:22]} 35.
Bxc5 {[%clk 00:13:11]} {[%emt 00:00:05]} Nd5 {[%clk 00:14:42]} {[%emt
00:00:06]} 36. a4 {[%clk 00:13:10]} {[%emt 00:00:31]} Ke6 {[%clk 00:15:00]}
{[%emt 00:00:12]} 37. a5 {[%clk 00:13:21]} {[%emt 00:00:18]} 1-0

[Event "6e festival d'échecs d'Allauch"]
[Site "Allauch, France"]
[Date "2024.08.26"]
[Round "1.5"]
[White "Pons, Lucas"]
[Black "Anton, Christophe"]
[Result "0-1"]
[TimeControl "1 h 30 min (+30s/coup)"]
[WhiteElo "1421"]
[BlackElo "1697"]

1. e4 {[%clk 01:30:59]} c5 {[%clk 01:30:52]} {[%emt 00:00:10]} 2. Nf3 {[%clk
01:31:20]} {[%emt 00:00:07]} d6 {[%clk 01:31:14]} {[%emt 00:00:09]} 3. d4
{[%clk 01:31:28]} {[%emt 00:00:21]} cxd4 {[%clk 01:31:38]} {[%emt 00:00:06]} 4.
Nxd4 {[%clk 01:31:43]} {[%emt 00:00:15]} Nf6 {[%clk 01:31:59]} {[%emt
00:00:08]} 5. Nc3 {[%clk 01:31:48]} {[%emt 00:00:25]} g6 {[%clk 01:32:15]}
{[%emt 00:00:14]} 6. Be3 {[%clk 01:30:30]} {[%emt 00:01:48]} Bg7 {[%clk
01:32:12]} {[%emt 00:00:34]} 7. Qd2 {[%clk 01:30:12]} {[%emt 00:00:48]} Ng4
{[%clk 01:31:44]} {[%emt 00:00:57]} 8. f3 {[%clk 01:27:18]} {[%emt 00:03:25]}
Nxe3 {[%clk 01:31:58]} {[%emt 00:00:15]} 9. Qxe3 {[%clk 01:27:35]} {[%emt
00:00:13]} Nc6 {[%clk 01:31:42]} {[%emt 00:00:46]} 10. Bb5 {[%clk 01:24:23]}
{[%emt 00:03:42]} Bd7 {[%clk 01:31:47]} {[%emt 00:00:25]} 11. Bxc6 {[%clk
01:22:27]} {[%emt 00:02:26]} bxc6 {[%clk 01:31:57]} {[%emt 00:00:20]} 12. O-O-O
{[%clk 01:21:13]} {[%emt 00:01:44]} a5 {[%clk 01:25:13]} {[%emt 00:07:15]} 13.
a4 {[%clk 01:18:26]} {[%emt 00:03:18]} Qb6 {[%clk 01:20:34]} {[%emt 00:05:07]}
14. f4 {[%clk 01:10:29]} {[%emt 00:08:28]} Bh6 {[%clk 01:10:18]} {[%emt
00:10:46]} 15. e5 {[%clk 01:08:38]} {[%emt 00:02:21]} O-O {[%clk 01:01:39]}
{[%emt 00:09:09]} 16. Qe4 {[%clk 01:01:00]} {[%emt 00:08:09]} Rab8 {[%clk
00:47:48]} {[%emt 00:14:21]} 17. Nb3 {[%clk 00:53:46]} {[%emt 00:07:44]} Bf5
{[%clk 00:40:11]} {[%emt 00:08:07]} 18. Qc4 {[%clk 00:44:24]} {[%emt 00:09:53]}
d5 {[%clk 00:32:27]} {[%emt 00:08:14]} 19. Qd4 {[%clk 00:39:48]} {[%emt
00:05:06]} Qxd4 {[%clk 00:23:28]} {[%emt 00:09:29]} 20. Nxd4 {[%clk 00:39:03]}
{[%emt 00:01:15]} Bxf4+ {[%clk 00:22:29]} {[%emt 00:01:29]} 21. Kb1 {[%clk
00:38:36]} {[%emt 00:00:57]} Bd7 {[%clk 00:18:38]} {[%emt 00:04:20]} 22. Rhe1
{[%clk 00:34:42]} {[%emt 00:04:25]} e6 {[%clk 00:12:06]} {[%emt 00:07:02]} 23.
g3 {[%clk 00:33:22]} {[%emt 00:01:50]} Bh6 {[%clk 00:12:21]} {[%emt 00:00:14]}
24. h4 {[%clk 00:30:40]} {[%emt 00:03:12]} Rb4 {[%clk 00:08:30]} {[%emt
00:04:21]} 25. Nf3 {[%clk 00:29:44]} {[%emt 00:01:27]} Rfb8 {[%clk 00:07:35]}
{[%emt 00:01:24]} 26. b3 {[%clk 00:28:00]} {[%emt 00:02:14]} c5 {[%clk
00:06:09]} {[%emt 00:01:57]} 27. Na2 {[%clk 00:26:07]} {[%emt 00:02:22]} Rxa4
{[%clk 00:05:41]} {[%emt 00:00:58]} 28. Ka1 {[%clk 00:22:57]} {[%emt 00:03:40]}
Rg4 {[%clk 00:05:21]} {[%emt 00:00:50]} 29. Rg1 {[%clk 00:21:01]} {[%emt
00:02:26]} Bg7 {[%clk 00:04:36]} {[%emt 00:01:14]} 30. Rde1 {[%clk 00:19:26]}
{[%emt 00:02:06]} a4 {[%clk 00:04:22]} {[%emt 00:00:45]} 31. Nd2 {[%clk
00:18:53]} {[%emt 00:01:03]} axb3 {[%clk 00:04:36]} {[%emt 00:00:16]} 32. cxb3
{[%clk 00:19:14]} {[%emt 00:00:09]} Bh6 {[%clk 00:04:15]} {[%emt 00:00:51]} 33.
Nf3 {[%clk 00:17:38]} {[%emt 00:02:05]} Rxb3 {[%clk 00:04:05]} {[%emt
00:00:40]} 34. Nh2 {[%clk 00:17:22]} {[%emt 00:00:46]} Rgxg3 {[%clk 00:04:12]}
{[%emt 00:00:24]} 35. Rxg3 {[%clk 00:17:43]} {[%emt 00:00:09]} Rxg3 {[%clk
00:04:36]} {[%emt 00:00:05]} 36. Rb1 {[%clk 00:16:33]} {[%emt 00:01:40]} Bf4
{[%clk 00:04:11]} {[%emt 00:00:55]} 37. Re1 {[%clk 00:13:05]} {[%emt 00:03:58]}
Re3 {[%clk 00:03:05]} {[%emt 00:01:37]} 38. Rxe3 {[%clk 00:13:02]} {[%emt
00:00:33]} Bxe3 {[%clk 00:03:30]} {[%emt 00:00:05]} 39. Ng4 {[%clk 00:13:20]}
{[%emt 00:00:11]} Bd4+ {[%clk 00:03:21]} {[%emt 00:00:40]} 40. Kb1 {[%clk
00:13:31]} {[%emt 00:00:19]} Bb5 {[%clk 00:03:26]} {[%emt 00:00:24]} 41. Nf6+
{[%clk 00:13:27]} {[%emt 00:00:36]} Kg7 {[%clk 00:03:35]} {[%emt 00:00:21]} 42.
h5 {[%clk 00:11:18]} {[%emt 00:02:39]} gxh5 {[%clk 00:03:28]} {[%emt 00:00:37]}
43. Nxh5+ {[%clk 00:11:33]} {[%emt 00:00:15]} Kg6 {[%clk 00:03:33]} {[%emt
00:00:26]} 44. Nf4+ {[%clk 00:11:18]} {[%emt 00:00:44]} Kf5 {[%clk 00:03:49]}
{[%emt 00:00:13]} 45. Nh3 {[%clk 00:10:48]} {[%emt 00:01:00]} Kg4 {[%clk
00:03:40]} {[%emt 00:00:39]} 46. Nf2+ {[%emt 00:00:33]} Bxf2 {[%emt 00:00:06]}
47. Nc3 {[%clk 00:10:29]} {[%emt 00:00:10]} Bd3+ {[%clk 00:03:51]} {[%emt
00:00:19]} 48. Kc1 {[%clk 00:10:27]} {[%emt 00:00:33]} h5 {[%clk 00:03:41]}
{[%emt 00:00:40]} 49. Kd2 {[%clk 00:10:46]} {[%emt 00:00:10]} c4 {[%clk
00:03:56]} {[%emt 00:00:14]} 50. Nb5 {[%clk 00:11:07]} {[%emt 00:00:09]} h4
{[%clk 00:04:04]} {[%emt 00:00:22]} 51. Nd6 {[%clk 00:11:29]} {[%emt 00:00:08]}
Bg6 {[%clk 00:04:02]} {[%emt 00:00:32]} 52. Ke2 {[%clk 00:11:37]} {[%emt
00:00:22]} Kg3 {[%clk 00:03:48]} {[%emt 00:00:44]} 53. Kf1 {[%clk 00:11:46]}
{[%emt 00:00:20]} h3 {[%clk 00:04:10]} {[%emt 00:00:09]} 54. Ke2 {[%clk
00:11:33]} {[%emt 00:00:43]} h2 {[%clk 00:04:28]} {[%emt 00:00:11]} 55. Nb5
{[%clk 00:11:47]} {[%emt 00:00:16]} h1=Q {[%clk 00:04:17]} {[%emt 00:00:41]}
0-1